fUST/lending_fUST_20241129
["ID","MTS","AMOUNT","RATE_DAILY","PERIOD"]
[343672499,1732837839117,-500.0,0.00024656,2]
[343672500,1732837839126,-500.0,0.00024656,2]
[343672501,1732837839135,-500.0,0.00024656,2]
[343672502,1732837839145,-500.0,0.00024656,2]
[343672503,1732837839155,-500.0,0.00024656,2]
[343672504,1732837839164,-500.0,0.00024656,2]
[343672505,1732837839173,-500.0,0.00024656,2]
[343672506,1732837839182,-500.0,0.00024656,2]
[343672507,1732837839192,-500.0,0.00024656,2]
[343672508,1732837839201,-500.0,0.00024656,2]
[343672509,1732837839211,-500.0,0.00024656,2]
[343672510,1732837839220,-500.0,0.00024656,2]
[343672511,1732837839230,-500.0,0.00024656,2]
[343672512,1732837839239,-500.0,0.00024656,2]
[343672513,1732837839249,-500.0,0.00024656,2]
[343672514,1732837839258,-500.0,0.00024656,2]
[343672515,1732837839268,-500.0,0.00024656,2]
[343672516,1732837839277,-625.13526811,0.00024656,2]
[343672517,1732837839287,-500.0,0.00024656,2]
[343672518,1732837839296,-500.0,0.00024656,2]
[343672519,1732837839306,-500.0,0.00024656,2]
[343672520,1732837839315,-500.0,0.00024656,2]
[343672521,1732837839325,-500.0,0.00024656,2]
[343672522,1732837839334,-500.0,0.00024656,2]
[343672523,1732837839343,-500.0,0.00024656,2]
[343672524,1732837839353,-500.0,0.00024656,2]
[343672525,1732837839363,-500.0,0.00024656,2]
[343672526,1732837839372,-205.95078875,0.00024656,2]
[343672527,1732837839382,-500.0,0.00024656,2]
[343672528,1732837839392,-500.0,0.00024656,2]
[343672529,1732837839404,-500.0,0.00024656,2]
[343672530,1732837839414,-500.0,0.00024656,2]
[343672531,1732837839424,-500.0,0.00024656,2]
[343672532,1732837839433,-500.0,0.00024656,2]
[343672533,1732837839443,-150.33145646,0.00024656,2]
[343672538,1732837840786,-349.66854354,0.00024656,2]
[343672539,1732837840796,-500.0,0.00024656,2]
[343672540,1732837840806,-500.0,0.00024656,2]
[343672541,1732837840816,-500.0,0.00024656,2]
[343672542,1732837840825,-500.0,0.00024656,2]
[343672543,1732837840835,-500.0,0.00024656,2]
[343672544,1732837840845,-500.0,0.00024656,2]
[343672545,1732837840855,-500.0,0.00024656,2]
[343672546,1732837840864,-500.0,0.00024656,2]
[343672547,1732837840875,-500.0,0.00024656,2]
[343672548,1732837840884,-500.0,0.00024656,2]
[343672549,1732837840894,-500.0,0.00024656,2]
[343672550,1732837840904,-500.0,0.00024656,2]
[343672551,1732837840914,-554.99371491,0.00024656,2]
[343672552,1732837840923,-500.0,0.00024656,2]
[343672553,1732837840933,-500.0,0.00024656,2]
[343672554,1732837840942,-500.0,0.00024656,2]
[343672555,1732837840952,-300.06118928,0.00024657,2]
[343672556,1732837840961,-500.0,0.00024657,2]
[343672557,1732837840971,-265.25958076,0.00024657,3]
[343672558,1732837840980,-500.0,0.00024657,3]
[343672559,1732837840989,-503.2507034,0.00024657,3]
[343672560,1732837840999,-500.0,0.00024657,3]
[343672561,1732837841008,-500.0,0.00024657,3]
[343672562,1732837841018,-500.0,0.00024657,3]
[343672563,1732837841026,-500.0,0.00024657,3]
[343672564,1732837841035,-500.0,0.00024657,3]
[343672565,1732837841045,-503.22899559,0.00024657,3]
[343672566,1732837841054,-502.65933547,0.00024657,3]
[343672567,1732837841063,-476.12788319,0.00024657,3]
[343672568,1732837841072,-258.05940754,0.00024657,3]
[343672569,1732837841081,-506.84709154,0.00024657,3]
[343672570,1732837841091,-500.0,0.00024657,3]
[343672571,1732837841100,-500.0,0.00024657,3]
[343672572,1732837841110,-500.0,0.00024657,3]
[343672573,1732837841119,-500.0,0.00024657,3]
[343672574,1732837841128,-500.0,0.00024657,3]
[343672575,1732837841138,-500.0,0.00024657,3]
[343672576,1732837841147,-626.86634547,0.00024657,3]
[343672577,1732837841157,-500.0,0.00024657,3]
[343672578,1732837841167,-500.0,0.00024657,3]
[343672579,1732837841176,-500.0,0.00024657,3]
[343672580,1732837841185,-500.0,0.00024657,3]
[343672581,1732837841194,-501.45371717,0.00024657,2]
[343672582,1732837841204,-515.39840153,0.00024657,3]
[343672583,1732837841216,-502.09391748,0.00024657,3]
[343672584,1732837841225,-502.02339263,0.00024657,3]
[343672585,1732837841234,-500.76685933,0.00024657,3]
[343672586,1732837841243,-500.0,0.00024657,3]
[343672587,1732837841252,-182.93777268,0.00024657,3]
[343672588,1732837841261,-501.02711865,0.00024657,3]
[343672589,1732837841270,-500.0,0.00024657,3]
[343672590,1732837841280,-502.49821246,0.00024657,3]
[343672591,1732837841374,-500.0,0.00024657,3]
[343672592,1732837841384,-500.0,0.00024657,3]
[343672593,1732837841394,-501.672682,0.00024657,3]
[343672594,1732837841405,-500.0,0.00024657,3]
[343672595,1732837841414,-547.10778266,0.00024657,3]
[343672596,1732837841423,-500.0,0.00024657,3]
[343672597,1732837841433,-500.0,0.00024657,3]
[343672598,1732837841443,-500.0,0.00024657,3]
[343672599,1732837841453,-500.0,0.00024657,3]
[343672600,1732837841463,-500.0,0.00024657,3]
[343672601,1732837841473,-500.0,0.00024657,3]
[343672602,1732837841482,-500.0,0.00024657,3]
[343672603,1732837841491,-500.0,0.00024657,3]
[343672604,1732837841501,-500.0,0.00024657,3]
[343672605,1732837841511,-500.0,0.00024657,3]
[343672606,1732837841521,-500.0,0.00024657,3]
[343672607,1732837841531,-500.0,0.00024657,3]
[343672608,1732837841541,-500.0,0.00024657,3]
[343672609,1732837841551,-500.0,0.00024657,3]
[343672610,1732837841560,-500.0,0.00024657,3]
[343672611,1732837841570,-472.6,0.00024657,3]
[343672612,1732837841580,-328.8621984,0.00024657,3]
[343672613,1732837841589,-500.0,0.00024657,3]
[343672614,1732837841599,-507.26092999,0.00024657,3]
[343672615,1732837841609,-500.63166572,0.00024657,3]
[343672616,1732837841619,-500.0,0.00024657,3]
[343672617,1732837841628,-500.0,0.00024657,3]
[343672618,1732837841637,-500.0,0.00024657,3]
[343672619,1732837841647,-500.0,0.00024657,3]
[343672620,1732837841658,-501.60766038,0.00024657,3]
[343672621,1732837841667,-500.0,0.00024657,3]
[343672622,1732837841677,-353.34196075,0.00024657,3]
[343672623,1732837841686,-500.0,0.00024657,3]
[343672624,1732837841695,-500.0,0.00024657,3]
[343672625,1732837841704,-500.0,0.00024657,3]
[343672626,1732837841713,-524.73169188,0.00024657,3]
[343672627,1732837841722,-500.0,0.00024657,3]
[343672628,1732837841731,-500.0,0.00024657,3]
[343672629,1732837841741,-500.0,0.00024657,3]
[343672630,1732837841751,-500.0,0.00024657,3]
[343672631,1732837841761,-500.0,0.00024657,3]
[343672632,1732837841770,-500.0,0.00024657,3]
[343672633,1732837841779,-500.0,0.00024657,3]
[343672634,1732837841789,-500.0,0.00024657,3]
[343672635,1732837841798,-500.0,0.00024657,3]
[343672636,1732837841806,-500.0,0.00024657,3]
[343672637,1732837841815,-365.98970602,0.00024657,3]
[343672638,1732837841824,-500.0,0.00024657,3]
[343672639,1732837841834,-500.0,0.00024657,3]
[343672640,1732837841843,-500.0,0.00024657,3]
[343672641,1732837841852,-500.0,0.00024657,3]
[343672642,1732837841862,-500.0,0.00024657,3]
[343672643,1732837841873,-500.0,0.00024657,3]
[343672644,1732837841882,-500.0,0.00024657,3]
[343672645,1732837841892,-506.14667319,0.00024657,3]
[343672646,1732837841901,-500.0,0.00024657,3]
[343672647,1732837841910,-500.0,0.00024657,3]
[343672648,1732837841919,-500.0,0.00024657,3]
[343672649,1732837841928,-500.0,0.00024657,3]
[343672650,1732837841937,-500.0,0.00024657,3]
[343672651,1732837841947,-500.0,0.00024657,3]
[343672652,1732837841956,-579.75158392,0.00024657,3]
[343672653,1732837841965,-500.0,0.00024657,3]
[343672654,1732837841975,-500.0,0.00024657,3]
[343672655,1732837841984,-311.66334416,0.00024657,3]
[343672656,1732837841993,-500.0,0.00024657,3]
[343672657,1732837842003,-500.0,0.00024657,3]
[343672658,1732837842011,-500.0,0.00024657,3]
[343672659,1732837842021,-500.0,0.00024657,3]
[343672660,1732837842030,-500.0,0.00024657,3]
[343672661,1732837842039,-500.0,0.00024657,3]
[343672662,1732837842049,-350.5,0.00024657,3]
[343672663,1732837842058,-500.0,0.00024657,3]
[343672664,1732837842067,-419.33458024,0.00024657,3]
[343672665,1732837842077,-500.0,0.00024657,3]
[343672666,1732837842086,-500.0,0.00024657,3]
[343672667,1732837842094,-500.0,0.00024657,3]
[343672668,1732837842104,-500.0,0.00024657,3]
[343672669,1732837842113,-500.0,0.00024657,3]
[343672670,1732837842122,-500.0,0.00024657,3]
[343672671,1732837842131,-485.88131712,0.00024657,3]
[343672672,1732837842140,-500.0,0.00024657,3]
[343672673,1732837842151,-500.0,0.00024657,3]
[343672674,1732837842160,-523.62427551,0.00024657,3]
[343672675,1732837842169,-500.0,0.00024657,3]
[343672676,1732837842178,-500.0,0.00024657,3]
[343672677,1732837842187,-598.84,0.00024657,3]
[343672678,1732837842197,-500.0,0.00024657,3]
[343672679,1732837842206,-598.84,0.00024657,3]
[343672680,1732837842216,-500.0,0.00024657,3]
[343672681,1732837842225,-598.84,0.00024657,3]
[343672682,1732837842234,-507.87856848,0.00024657,3]
[343672683,1732837842243,-598.84,0.00024657,3]
[343672684,1732837842252,-598.84,0.00024657,3]
[343672685,1732837842261,-598.84,0.00024657,3]
[343672686,1732837842270,-598.84,0.00024657,3]
[343672687,1732837842280,-598.84,0.00024657,3]
[343672688,1732837842290,-598.84,0.00024657,3]
[343672689,1732837842299,-598.84,0.00024657,3]
[343672690,1732837842309,-500.0,0.00024657,3]
[343672691,1732837842318,-500.0,0.00024657,3]
[343672692,1732837842330,-500.0,0.00024657,3]
[343672693,1732837842340,-500.0,0.00024657,3]
[343672694,1732837842349,-501.02831318,0.00024657,3]
[343672695,1732837842359,-500.0,0.00024657,3]
[343672696,1732837842369,-500.0,0.00024657,3]
[343672697,1732837842380,-500.0,0.00024657,3]
[343672698,1732837842390,-500.0,0.00024657,3]
[343672699,1732837842400,-500.0,0.00024657,3]
[343672700,1732837842409,-500.0,0.00024657,3]
[343672701,1732837842419,-500.0,0.00024657,3]
[343672702,1732837842428,-500.0,0.00024657,3]
[343672703,1732837842437,-500.0,0.00024657,3]
[343672704,1732837842446,-500.0,0.00024657,3]
[343672705,1732837842457,-500.0,0.00024657,3]
[343672706,1732837842466,-500.0,0.00024657,3]
[343672707,1732837842477,-555.92090764,0.00024657,3]
[343672708,1732837842487,-500.0,0.00024657,3]
[343672709,1732837842496,-533.69121379,0.00024657,3]
[343672710,1732837842505,-500.0,0.00024657,3]
[343672711,1732837842515,-500.0,0.00024657,3]
[343672712,1732837842524,-500.0,0.00024657,3]
[343672713,1732837842536,-500.0,0.00024657,3]
[343672714,1732837842545,-500.0,0.00024657,3]
[343672715,1732837842554,-500.0,0.00024657,3]
[343672716,1732837842564,-500.0,0.00024657,3]
[343672717,1732837842574,-500.0,0.00024657,3]
[343672718,1732837842583,-500.0,0.00024657,3]
[343672719,1732837842593,-500.0,0.00024657,3]
[343672720,1732837842602,-500.0,0.00024657,3]
[343672721,1732837842611,-500.0,0.00024657,3]
[343672722,1732837842621,-500.0,0.00024657,3]
[343672723,1732837842630,-500.0,0.00024657,3]
[343672724,1732837842640,-500.0,0.00024657,3]
[343672725,1732837842649,-500.0,0.00024657,3]
[343672726,1732837842662,-500.0,0.00024657,3]
[343672727,1732837842672,-500.0,0.00024657,3]
[343672728,1732837842681,-490.18261091,0.00024657,3]
[343672729,1732837842690,-259.57296,0.00024658,2]
[343672730,1732837842699,-170.0,0.00024673,2]
[343672731,1732837842708,-435.3156928,0.00024889,11]
[343672732,1732837842718,-302.72757545,0.00025,2]
[343672733,1732837842728,-220.378059,0.00025138,2]
[343672734,1732837842738,-302.72757545,0.0002525,2]
[343672735,1732837842747,-220.378059,0.00025452,2]
[343672736,1732837842758,-302.72757545,0.000255,2]
[343672737,1732837842767,-500.94072214,0.00025705,2]
[343672738,1732837842777,-500.0,0.00025705,2]
[343672739,1732837842787,-500.0,0.00025705,2]
[343672740,1732837842796,-302.72757545,0.0002575,2]
[343672741,1732837842805,-220.378059,0.00025766,2]
[343672742,1732837842815,-302.72757545,0.00026,2]
[343672743,1732837842824,-220.378059,0.0002608,2]
[343672744,1732837842833,-500.0,0.00026189,3]
[343672745,1732837842842,-500.0,0.00026189,3]
[343672746,1732837842851,-500.0,0.00026189,3]
[343672747,1732837842860,-598.84,0.00026189,3]
[343672748,1732837842870,-598.84,0.00026189,3]
[343672749,1732837842880,-598.84,0.00026189,3]
[343672750,1732837842890,-500.0,0.00026189,3]
[343672751,1732837842900,-500.0,0.00026189,3]
[343672752,1732837842910,-500.0,0.00026189,3]
[343672753,1732837842919,-200.35364968,0.00026189,3]
[343672754,1732837842929,-500.0,0.00026192,3]
[343672755,1732837842938,-243.54393457,0.00026192,3]
[343672756,1732837842947,-504.8696953,0.00026192,3]
[343672757,1732837842956,-500.0,0.00026192,3]
[343672758,1732837842967,-510.8431275,0.00026192,3]
[343672759,1732837842979,-454.09136318,0.0002625,4]
[343672760,1732837842989,-220.378059,0.00026395,2]
[343672761,1732837842998,-151.0,0.000265,12]
[343672762,1732837843008,-165.2489358,0.000265,4]
[343672763,1732837843017,-181.013,0.00026525,13]
[343672764,1732837843026,-500.0,0.00026572,3]
[343672765,1732837843035,-357.2708701,0.00026572,3]
[343672766,1732837843046,-500.0,0.00026572,3]
[343672767,1732837843055,-500.0,0.00026572,3]
[343672768,1732837843064,-500.0,0.00026572,3]
[343672769,1732837843074,-500.0,0.00026572,3]
[343672770,1732837843083,-500.0,0.00026572,3]
[343672771,1732837843092,-500.0,0.00026572,3]
[343672772,1732837843102,-500.0,0.00026572,3]
[343672773,1732837843111,-500.0,0.00026572,3]
[343672774,1732837843119,-500.0,0.00026572,3]
[343672775,1732837843128,-554.22115936,0.00026572,3]
[343672776,1732837843137,-500.0,0.00026572,3]
[343672777,1732837843147,-500.0,0.00026572,3]
[343672778,1732837843159,-500.0,0.00026572,3]
[343672779,1732837843168,-500.0,0.00026572,3]
[343672780,1732837843177,-500.0,0.00026572,3]
[343672781,1732837843186,-213.65,0.00026572,3]
[343672782,1732837843195,-500.0,0.00026572,3]
[343672783,1732837843204,-500.0,0.00026572,3]
[343672784,1732837843214,-500.0,0.00026572,3]
[343672785,1732837843223,-500.0,0.00026572,3]
[343672786,1732837843232,-500.0,0.00026572,3]
[343672787,1732837843242,-225.36,0.00026572,3]
[343672788,1732837843251,-500.0,0.00026572,3]
[343672789,1732837843261,-475.21557075,0.00026572,3]
[343672790,1732837843270,-500.0,0.00026572,3]
[343672791,1732837843279,-513.67358796,0.00026572,3]
[343672792,1732837843289,-500.0,0.00026572,3]
[343672793,1732837843299,-508.66501276,0.00026572,3]
[343672794,1732837843309,-500.0,0.00026572,3]
[343672795,1732837843319,-509.02639582,0.00026572,3]
[343672796,1732837843328,-500.0,0.00026572,3]
[343672797,1732837843338,-500.0,0.00026572,3]
[343672798,1732837843347,-335.67507724,0.00026572,3]
[343672799,1732837843356,-160.40318314,0.00026572,3]
[343672800,1732837843365,-500.0,0.00026572,3]
[343672801,1732837843374,-500.0,0.00026572,3]
[343672802,1732837843384,-500.0,0.00026572,3]
[343672803,1732837843393,-500.0,0.00026572,3]
[343672805,1732837843404,-515.75666363,0.00026572,3]
[343672807,1732837843417,-500.0,0.00026572,3]
[343672808,1732837843426,-218.84573052,0.00026572,3]
[343672810,1732837843437,-502.96933111,0.00026572,3]
[343672812,1732837843448,-504.94932004,0.00026572,3]
[343672813,1732837843459,-700.27,0.00026572,3]
[343672814,1732837843468,-700.27,0.00026572,3]
[343672815,1732837843478,-700.27,0.00026572,3]
[343672816,1732837843488,-700.27,0.00026572,3]
[343672817,1732837843497,-700.27,0.00026572,3]
[343672818,1732837843506,-700.27,0.00026572,3]
[343672819,1732837843516,-700.27,0.00026572,3]
[343672820,1732837843525,-700.27,0.00026572,3]
[343672821,1732837843537,-700.27,0.00026572,3]
[343672822,1732837843548,-700.27,0.00026572,3]
[343672823,1732837843558,-831.01,0.00026572,3]
[343672824,1732837843567,-831.01,0.00026572,3]
[343672825,1732837843577,-831.01,0.00026572,3]
[343672826,1732837843588,-831.01,0.00026572,3]
[343672827,1732837843597,-831.01,0.00026572,3]
[343672828,1732837843608,-831.01,0.00026572,3]
[343672829,1732837843619,-831.01,0.00026572,3]
[343672830,1732837843629,-831.01,0.00026572,3]
[343672831,1732837843638,-831.01,0.00026572,3]
[343672832,1732837843648,-831.01,0.00026572,3]
[343672833,1732837843662,-500.0,0.00026572,3]
[343672834,1732837843674,-500.0,0.00026572,3]
[343672835,1732837843683,-500.0,0.00026572,3]
[343672836,1732837843693,-500.0,0.00026572,3]
[343672838,1732837843703,-500.0,0.00026572,3]
[343672840,1732837843801,-500.0,0.00026572,3]
[343672841,1732837843812,-507.9816244,0.00026572,3]
[343672842,1732837843823,-500.0,0.00026572,3]
[343672843,1732837843834,-512.02482558,0.00026573,2]
[343672844,1732837843844,-500.0,0.00026625,2]
[343672845,1732837843854,-500.0,0.00026625,2]
[343672846,1732837843865,-274.08718033,0.00026625,2]
[343672848,1732837843875,-500.0,0.0002664,2]
[343672849,1732837843884,-500.0,0.00026667,2]
[343672850,1732837843893,-420.0,0.00026712,2]
[343672851,1732837843905,-151.0,0.000269,19]
[343672852,1732837843915,-700.27,0.00027089,3]
[343672853,1732837843924,-831.01,0.00027089,3]
[343672854,1732837843934,-700.27,0.00027099,3]
[343672855,1732837843943,-700.27,0.00027099,3]
[343672856,1732837843954,-831.01,0.00027099,3]
[343672857,1732837843964,-831.01,0.00027099,3]
[343672858,1732837843974,-500.0,0.00027101,3]
[343672859,1732837843983,-598.84,0.00027101,3]
[343672860,1732837843993,-373.58497538,0.00027101,3]
[343672861,1732837844002,-500.0,0.00027102,2]
[343672862,1732837844011,-258.95858756,0.00027173,2]
[343672863,1732837844021,-200.96309607,0.00027173,2]
[343672864,1732837844031,-452.50595125,0.00027173,2]
[343672865,1732837844041,-151.0,0.000273,15]
[343672866,1732837844051,-173.61703991,0.00027342,2]
[343672867,1732837844061,-151.0,0.000276,18]
[343672868,1732837844071,-151.0,0.00028,16]
[343672869,1732837844080,-700.27,0.00028099,3]
[343672870,1732837844090,-831.01,0.00028099,3]
[343672871,1732837844099,-1048.34,0.000281,2]
[343672872,1732837844109,-151.0,0.000284,14]
[343672873,1732837844118,-151.0,0.000287,11]
[343672874,1732837844127,-587.0,0.00028948,2]
[343672875,1732837844136,-690.66649808,0.00029051,2]
[343672876,1732837844146,-151.0,0.000291,12]
[343672877,1732837844156,-301.112233,0.000291,17]
[343672878,1732837844166,-164.792936,0.00029349,2]
[343672879,1732837844175,-151.0,0.000295,12]
[343672880,1732837844184,-248.522,0.00029557,2]
[343672881,1732837844193,-2378.0,0.00029557,2]
[343672882,1732837844202,-1104.0,0.00029557,2]
[343672883,1732837844211,-176.645,0.00029557,2]
[343672884,1732837844221,-150.28,0.00029557,2]
[343672885,1732837844230,-1514.739,0.00029557,2]
[343672886,1732837844239,-500.0,0.00029592,2]
[343672887,1732837844248,-500.0,0.00029592,3]
[343672888,1732837844257,-500.0,0.00029592,3]
[343672889,1732837844267,-1545.97348236,0.000296,2]
[343672890,1732837844276,-500.0,0.00029632,3]
[343672891,1732837844286,-598.84,0.00029632,3]
[343672892,1732837844296,-500.0,0.00029655,3]
[343672893,1732837844307,-500.0,0.00029655,3]
[343672894,1732837844317,-285.0802196,0.00029683,2]
[343672895,1732837844328,-263.25367419,0.00029683,2]
[343672896,1732837844338,-500.0,0.00029683,2]
[343672897,1732837844348,-282.64576509,0.00029683,2]
[343672898,1732837844359,-500.0,0.00029683,2]
[343672899,1732837844368,-266.27162642,0.00029683,2]
[343672900,1732837844378,-192.68473366,0.00029683,2]
[343672901,1732837844388,-700.27,0.00029684,3]
[343672902,1732837844397,-700.27,0.00029684,3]
[343672903,1732837844408,-700.27,0.00029684,3]
[343672904,1732837844418,-700.27,0.00029684,3]
[343672905,1732837844427,-700.27,0.00029684,3]
[343672906,1732837844436,-700.27,0.00029684,3]
[343672907,1732837844445,-700.27,0.00029684,3]
[343672908,1732837844455,-700.27,0.00029684,3]
[343672909,1732837844466,-700.27,0.00029684,3]
[343672910,1732837844476,-700.43,0.00029684,3]
[343672911,1732837844485,-831.01,0.00029684,3]
[343672912,1732837844495,-831.01,0.00029684,3]
[343672913,1732837844504,-831.01,0.00029684,3]
[343672914,1732837844513,-831.01,0.00029684,3]
[343672915,1732837844523,-831.01,0.00029684,3]
[343672916,1732837844534,-831.01,0.00029684,3]
[343672917,1732837844550,-831.01,0.00029684,3]
[343672918,1732837844559,-831.01,0.00029684,3]
[343672919,1732837844570,-831.01,0.00029684,3]
[343672920,1732837844582,-831.13,0.00029684,3]
[343672921,1732837844592,-500.0,0.00029684,3]
[343672922,1732837844601,-500.0,0.00029684,3]
[343672923,1732837844610,-500.0,0.00029684,3]
[343672924,1732837844621,-500.0,0.00029684,3]
[343672925,1732837844631,-500.0,0.00029684,3]
[343672926,1732837844640,-500.0,0.00029684,3]
[343672927,1732837844650,-500.0,0.00029684,3]
[343672928,1732837844660,-333.53815768,0.00029684,3]
[343672929,1732837844670,-598.84,0.00029684,3]
[343672930,1732837844679,-598.84,0.00029684,3]
[343672931,1732837844688,-598.84,0.00029684,3]
[343672932,1732837844698,-598.84,0.00029684,3]
[343672933,1732837844708,-598.84,0.00029684,3]
[343672934,1732837844717,-598.84,0.00029684,3]
[343672935,1732837844726,-598.84,0.00029684,3]
[343672936,1732837844736,-598.84,0.00029684,3]
[343672937,1732837844745,-598.97731651,0.00029684,3]
[343672938,1732837844754,-2615.48418225,0.00029685,2]
[343672939,1732837844765,-122260.31324868,0.00029685,2]
[343672940,1732837844776,-151.0,0.000297,12]
[343672941,1732837844786,-308.90827981,0.000297,2]
[343672942,1732837844795,-1545.97348232,0.00029733,2]
[343672943,1732837844804,-308.90827972,0.00029748,2]
[343672944,1732837844813,-502.3296274,0.00029773,5]
[343672945,1732837844822,-500.0,0.00029773,5]
[343672946,1732837844831,-160.13477241,0.00029773,5]
[343672947,1732837844840,-152500.55567064,0.00029785,2]
[343672948,1732837844857,-332.91988524,0.00029785,2]
[343672949,1732837845134,-500.0,0.00024657,3]
[343672950,1732837845144,-500.0,0.00024657,3]
[343672951,1732837845155,-501.15002246,0.00025705,2]
[343672952,1732837845165,-47121.71605229,0.00029785,2]
[343672953,1732837845176,-496.778,0.00029785,2]
[343672958,1732838320215,161.006746,0.00013973,2]
[343672959,1732838611300,150.0,0.00029666,120]
[343672960,1732838759131,-1097.3361853,0.00023637,2]
[343672961,1732838759154,-50.97562216,0.00023656,11]
[343672965,1732838829143,-181.1080224,0.00023656,11]
[343672966,1732838832136,-959.84927134,0.00023656,11]
[343672967,1732838832156,-77.87660527,0.00023999,2]
[343672968,1732838838102,-222.12339473,0.00023999,2]
[343672969,1732838838124,-300.0,0.00023999,2]
[343672970,1732838838146,-1501.93427618,0.00023999,2]
[343672971,1732838840118,-2381.06572382,0.00023999,2]
[343672972,1732838840142,-6043.13982754,0.00024,2]
[343672973,1732838840174,-945.70182,0.00024,2]
[343672980,1732838965093,-215.48108312,0.00024,2]
[343672984,1732838973139,-3044.79129541,0.00024,2]
[343672985,1732838973162,-200.12188659,0.00024557,2]
[343672989,1732839035571,-1041.1889196,0.00024557,2]
[343672990,1732839035581,-1023.21106335,0.000246,2]
[343673000,1732839035677,-1784.85676134,0.000246,2]
[343673003,1732839035690,-191.93217531,0.000246,2]
[343673005,1732839035700,-3000.0,0.0002461,2]
[343673007,1732839035710,-300.0,0.00024619,2]
[343673009,1732839035719,-300.0,0.00024619,2]
[343673011,1732839035728,-3000.0,0.0002462,2]
[343673013,1732839035738,-2768.16782469,0.0002463,2]
[343673048,1732839037883,-231.83217531,0.0002463,2]
[343673049,1732839037893,-5039.790581,0.0002464,2]
[343673050,1732839037904,-500.0,0.00024657,3]
[343673051,1732839037914,-500.0,0.00024657,3]
[343673052,1732839037927,-500.0,0.00024657,3]
[343673053,1732839037937,-500.0,0.00024657,3]
[343673054,1732839037948,-500.0,0.00024657,3]
[343673055,1732839037957,-376.26750385,0.00024657,3]
[343673056,1732839037969,-500.0,0.00024657,3]
[343673057,1732839037979,-500.0,0.00024657,3]
[343673058,1732839037989,-441.10338157,0.00024657,3]
[343673059,1732839037999,-500.0,0.00024657,3]
[343673060,1732839038010,-500.0,0.00024657,3]
[343673061,1732839038020,-500.0,0.00024657,3]
[343673062,1732839038030,-500.0,0.00024657,3]
[343673063,1732839038039,-500.0,0.00024657,3]
[343673064,1732839038051,-500.0,0.00024657,3]
[343673065,1732839038061,-500.0,0.00024657,3]
[343673066,1732839038071,-500.0,0.00024657,3]
[343673067,1732839038081,-500.0,0.00024657,3]
[343673068,1732839038094,-500.0,0.00024657,3]
[343673069,1732839038103,-500.0,0.00024657,3]
[343673070,1732839038113,-500.0,0.00024657,3]
[343673071,1732839038123,-500.0,0.00024657,3]
[343673072,1732839038132,-500.0,0.00024657,3]
[343673073,1732839038142,-500.0,0.00024657,3]
[343673074,1732839038151,-500.0,0.00024657,3]
[343673075,1732839038162,-1241.31080612,0.00025352,2]
[343673076,1732839038172,-152.0,0.00025774,2]
[343673077,1732839038183,-1241.31080612,0.00026146,2]
[343673078,1732839038193,-173.882286,0.00026509,2]